Cogmind - Beta 17 @@@ ROGUE MODE // 2026.08.17 @ 17:47:56 Player: Niamak Result: Self-destructed Performance ------------- Evolutions (1) 500 Regions Visited (3) 600 Robots Destroyed (30) 150 Value Destroyed (621) 621 Prototype IDs (0) 0 Alien Tech Used (0) 0 Bonus (60) 60 TOTAL SCORE: 1931 Bonus ------- Follower Combat Kills 60 Cogmind --------- Core Integrity 302/400 Matter 14/300 Energy 100/100 System Corruption 0% Temperature Cool (0) Movement Walking (190) Ox1 Location -9/Materials Parts ------- > --- POWER (1) -------- (None) > --- PROPULSION (2) --- Aluminum Leg > --- UTILITY (4) ------ Medium Storage Unit Signal Interpreter Improved Terrain Scanner > --- WEAPON (2) ------- Rocket Launcher Makeshift Axe > --- INVENTORY (10) --- Light Ion Engine Light Ion Engine Light Nuclear Core Signal Interpreter Signal Interpreter EM Pulse Gun Light Cannon Peak State ------------ > --- POWER ------------ Light Nuclear Core > --- PROPULSION ------- Aluminum Leg Aluminum Leg > --- UTILITY ---------- Medium Storage Unit Signal Interpreter Improved Terrain Scanner Seismic Detector > --- WEAPON ----------- Rocket Launcher Makeshift Axe > --- INVENTORY -------- Light Ion Engine Light Ion Engine Light Ion Engine Signal Interpreter Signal Interpreter EM Pulse Gun Light Cannon [Rating: 17] Favorites ----------- Power Light Ion Engine Engine Light Ion Engine Power Core Light Nuclear Core Propulsion Light Treads Treads Light Treads Leg Aluminum Leg Utility Medium Storage Unit Device Seismic Detector Storage Medium Storage Unit Processor Signal Interpreter Weapon Makeshift Axe Energy Gun Particle Gun Ballistic Gun Assault Rifle Ballistic Cannon Light Cannon Launcher Rocket Launcher Slashing Weapon Makeshift Axe Build | -11 -10 -10 -9 ------- Run | Yrd Mat Min Mat Slots Evolved 2 | . . . 2 Power . | . . . . Propulsion . | . . . . Utility 2 | . . . 2 Weapon . | . . . . Parts Attached 19 | 7 3 6 3 Power 3 | 1 . 1 1 Engine 2 | 1 . . 1 Core 1 | . . 1 . Reactor . | . . . . Propulsion 5 | 2 . 3 . Treads 2 | 2 . . . Leg 3 | . . 3 . Wheel . | . . . . Hover . | . . . . Flight . | . . . . Utility 5 | 2 1 . 2 Device 2 | 1 . . 1 Storage 2 | 1 1 . . Processor 1 | . . . 1 Hackware . | . . . . Protection . | . . . . Artifact . | . . . . Weapon 6 | 2 2 2 . Energy Gun 2 | 1 1 . . Energy Cannon . | . . . . Ballistic Gun 1 | 1 . . . Ballistic Cannon 1 | . 1 . . Launcher 1 | . . 1 . Special Weapon . | . . . . Impact Weapon . | . . . . Slashing Weapon 1 | . . 1 . Piercing Weapon . | . . . . Special Melee Weapon . | . . . . Unidentified Prototypes . | . . . . Parts Lost 5 | . . 2 3 Power 1 | . . . 1 Propulsion 2 | . . 1 1 Utility 1 | . . . 1 Weapon 1 | . . 1 . Highest Loss Streak 2 | . . 2 2 To Critical Strikes . | . . . . Average Backups 7 | 2 7 9 8 Power 2 | . 2 3 3 Propulsion . | . . . . Utility 3 | . 2 4 3 Weapon 1 | . 2 1 2 Tool/Special . | . . . . Unused Backups 5 | . . 1 4 Power 2 | . . . 2 Propulsion . | . . . . Utility 2 | . . . 2 Weapon 1 | . . 1 . Tool/Special . | . . . . Average Slot Usage (%) 91 | . 97 89 85 Engine 7 | . 14 4 6 Core 5 | . . 9 4 Treads 12 | . 28 9 . Leg 13 | . . 17 21 Device 9 | . 12 5 12 Storage 13 | . 14 14 11 Processor 1 | . . . 7 Energy Gun 7 | . 11 8 . Ballistic Gun 1 | . 5 . . Ballistic Cannon 6 | . 10 7 . Launcher 3 | . . 1 11 Slashing Weapon 7 | . . 9 11 Peak Build Rating 17 | 7 9 14 17 Average Rating 10 | 5 8 11 14 On Entrance 7 | . 7 9 13 Avg Prop Armor Cover (%) . | . . . . Naked Turns . | . . . . Heaviest Build 24 | 13 20 22 24 Greatest Support 40 | 40 40 40 20 Greatest Overweight (x) 2 | . . 2 2 Average Overweight (x) . | . . . 1 Largest Inventory Capacity 10 | 8 10 10 10 Average Capacity 9 | 7 9 10 10 Most Carried 10 | 4 10 10 10 Average Carried 7 | 2 7 9 8 Final Capacity 10 | 8 10 10 10 Final Carried 10 | 4 10 10 7 Class Distribution -------------------- 87% | Mutant 12% | Scavenger-Mutant Dominant Class ---------------- Mutant | -10/Materials Mutant | -10/Mines Mutant | -9/Materials Resources | -11 -10 -10 -9 ----------- Run | Yrd Mat Min Mat Matter Collected 562 | 283 201 78 . Remotely . | . . . . Salvage Created 779 | 84 247 321 127 Parts 53 | 12 16 15 10 Haulers Intercepted . | . . . . Recyclers Shooed 2 | . 1 1 . Parts Field Recycled . | . . . . Retrieved Matter . | . . . . Parts Self-Destructed . | . . . . Prevented . | . . . . Parts Restored . | . . . . Kills | -11 -10 -10 -9 ------- Run | Yrd Mat Min Mat Combat Hostiles Destroyed 21 | . 7 10 4 Melee 4 | . . 4 . Guns 4 | . 2 2 . Cannons 6 | . 5 1 . AOE 7 | . . 3 4 Classes Destroyed 9 | 1 4 3 1 Worker 1 | . . 1 . Tunneler 6 | 4 . 2 . Recycler 2 | . . 2 . Operator 1 | . 1 . . Watcher 3 | . 2 . 1 Swarmer 6 | . 3 3 . Grunt 9 | . 4 3 2 Sentry 2 | . . . 2 Assembled 4 | . . 4 . Best Kill Streak 5 | 2 5 5 2 Combat Bots Only 4 | . 4 3 2 Max Kills in Single Turn 1 | 1 1 1 1 Gunslinging . | . . . . Exploded 1 | . . 1 1 Melee 1 | . . 1 . Uniques/NPCs Destroyed . | . . . . Combat | -11 -10 -10 -9 -------- Run | Yrd Mat Min Mat Hostile Shots Fired 132 | . 42 62 28 Missed 42 | . 15 17 10 Hits 90 | . 27 45 18 Melee 3 | . . 3 . Projectile 87 | . 27 42 18 Critical Strikes 1 | . . 1 . Damage Taken 1123 | 18 297 502 306 Core 278 | . 79 101 98 Absorbed by Shields . | . . . . Core Remaining (%) 64 | 100 . 28 . Volleys Fired 63 | 12 21 15 15 Largest 2 | 2 2 2 1 Hottest 95 | 60 95 95 33 Shots Fired 102 | 24 41 22 15 Gun 53 | 24 20 9 . Cannon 28 | . 21 7 . Launcher 21 | . . 6 15 Special . | . . . . Kinetic 58 | 12 39 7 . Thermal 11 | . 2 9 . Explosive 21 | . . 6 15 Electromagnetic 12 | 12 . . . Robot Hit Streak 7 | 4 4 5 7 Robot Miss Streak 4 | 4 4 2 2 Penetration Max . | . . . . Secondary Targets . | . . . . Shots Hit Robots 60 | 11 17 22 10 Core Hits 43 | 4 12 17 10 Critical Kills . | . . . . Critical Parts Destroyed . | . . . . Critical Strikes 1 | . 1 . . Blast 1 | . 1 . . Melee Attacks 24 | . . 22 2 Impact . | . . . . Slashing 24 | . . 22 2 Piercing . | . . . . Sneak Attacks 1 | . . 1 . Combat Hostiles . | . . . . Follow-up Attacks . | . . . . Damage Inflicted 2016 | 168 348 863 637 Guns 362 | 132 156 74 . Cannons 281 | . 192 89 . Explosions 944 | 36 . 303 605 Melee 414 | . . 382 32 Ramming 15 | . . 15 . Kinetic 477 | 57 331 89 . Thermal 127 | 36 17 74 . Explosive 908 | . . 303 605 Electromagnetic 75 | 75 . . . Impact . | . . . . Slashing 414 | . . 382 32 Piercing . | . . . . Highest Corruption . | . . . . Average Corruption . | . . . . Corruption Purged . | . . . . Corruption Blocked . | . . . . Overload Shots . | . . . . Overflow Damage 121 | . . 119 2 Projectiles . | . . . . Explosions 43 | . . 43 . Melee 78 | . . 76 2 Knockbacks 1 | . . 1 . Impact . | . . . . Kinetic 1 | . . 1 . Secondary . | . . . . Self-Inflicted Damage 67 | 18 . . 49 Shots 2 | 1 . . 1 Rammed 3 | . . 3 . Targets Rammed 3 | . . 3 . Kicked . | . . . . Crushed . | . . . . Highest Temperature 218 | 12 33 218 3 Average Temperature 41 | 12 13 68 2 Received Heat Transfer 458 | . 102 215 141 Siege Activations . | . . . . Martial Activations . | . . . . Shielding Activations . | . . . . Robots Disrupted . | . . . . Combat Hostiles . | . . . . Robots Corrupted . | . . . . Combat Hostiles . | . . . . Parts Fried . | . . . . Impact Corruptions . | . . . . Robots Melted . | . . . . Combat Hostiles . | . . . . Parts Melted 1 | . . 1 . Heat Transferred 222 | . 37 185 . Parts Sabotaged . | . . . . Parts Stolen . | . . . . Parts Stripped . | . . . . Power Chain Reactions 1 | 1 . . . Alert | -11 -10 -10 -9 ------- Run | Yrd Mat Min Mat Maximum Alert Level . | . . . . Low Security (%) 100 | 100 100 100 100 Level 1 . | . . . . Level 2 . | . . . . Level 3 . | . . . . Level 4 . | . . . . Level 5 . | . . . . High Security . | . . . . Max Security . | . . . . Peak Influence 142 | 5 140 138 142 Initial 13 | . . 3 13 Average 41 | 1 60 39 35 Influence Increases 706 | 20 189 277 220 Destroy 0b10 Robot/C 380 | . 140 160 80 Destroy 0b10 Robot/NC 65 | 20 15 25 5 Destroy Leader 86 | . 34 30 22 Allied During Kill 3 | . . 3 . Successful Hack 8 | . . . 8 Disable Machine 30 | . . . 30 Destroy Structure 104 | . . 29 75 Lose Combat Pursuer 30 | . . 30 . Influence Decreases 614 | 20 180 251 163 Entered New Map 28 | . . 6 22 Time Decay 511 | 20 180 200 111 Lost Part 50 | . . 20 30 Lost Ally 25 | . . 25 . Squads Dispatched 1 | . 1 . . Investigation . | . . . . Extermination . | . . . . Reinforcement 1 | . 1 . . Assault . | . . . . Garrison . | . . . . Intercept . | . . . . Searches Triggered . | . . . . Construction Impeded . | . . . . Haulers Reinforced . | . . . . Active Scanning Responses . | . . . . Cargo Convoy Interrupts . | . . . . Stealth | -11 -10 -10 -9 --------- Run | Yrd Mat Min Mat Distress Signals 3 | . . 2 1 Communications Jammed . | . . . . Distress Signals . | . . . . Times Spotted 34 | . 11 16 7 Peak Tracking Total 5 | . 5 4 3 Tactical Retreats 3 | . . 3 . Traps | -11 -10 -10 -9 ------- Run | Yrd Mat Min Mat Traps Triggered . | . . . . Indirectly . | . . . . Trap Hack Attempts . | . . . . Triggered . | . . . . Disarmed . | . . . . Reprogrammed . | . . . . Reused . | . . . . Traps Extracted . | . . . . Installed . | . . . . Triggered . | . . . . Machines | -11 -10 -10 -9 ---------- Run | Yrd Mat Min Mat Machines Disabled 2 | . . . 2 Max in Single Turn 1 | . . . 1 Machines Repaired . | . . . . Machines Dismantled . | . . . . Machines Sabotaged . | . . . . Overloaded Fab Kills . | . . . . Hacking | -11 -10 -10 -9 --------- Run | Yrd Mat Min Mat Machines Accessed 4 | . 2 . 2 Terminals 2 | . 1 . 1 Fabricators . | . . . . Repair Stations 1 | . . . 1 Recycling Units 1 | . 1 . . Scanalyzers . | . . . . Garrison Access . | . . . . Total Hacks 10 | . 2 . 8 Successful 4 | . 1 . 3 Failed 6 | . 1 . 5 Catastrophic . | . . . . Database Lockouts . | . . . . Manual . | . . . . Terminals 7 | . 1 . 6 Fabricators . | . . . . Repair Stations 2 | . . . 2 Recycling Units 1 | . 1 . . Scanalyzers . | . . . . Garrison Access . | . . . . Terminal Hacks 2 | . . . 2 Locate Traps 1 | . . . 1 Dispatch Records 1 | . . . 1 Fabricator Hacks . | . . . . Repair Station Hacks 1 | . . . 1 Scan Component 1 | . . . 1 Recycling Unit Hacks 1 | . 1 . . Report Inventory 1 | . 1 . . Scanalyzer . | . . . . Garrison Access Hacks . | . . . . Unauthorized Hacks . | . . . . Terminals . | . . . . Fabricators . | . . . . Repair Stations . | . . . . Recycling Units . | . . . . Scanalyzers . | . . . . Garrison Access . | . . . . Data Cores Recovered 1 | . 1 . . Used . | . . . . Hacking Detections 4 | . 2 . 2 Full Trace Events . | . . . . Feedback Events . | . . . . Feedback Blocked . | . . . . Robot Schematics Acquired . | . . . . Robots Built . | . . . . Authchips . | . . . . Time . | . . . . Total Robot Build Rating . | . . . . Part Schematics Acquired . | . . . . Parts Built . | . . . . Authchips . | . . . . Time . | . . . . Total Part Build Rating . | . . . . Part Studies Acquired . | . . . . Parts Repaired . | . . . . Time . | . . . . Parts Recycled . | . . . . Recycled Matter . | . . . . Retrieved Matter . | . . . . Retrieved Components . | . . . . Parts Scanalyzed . | . . . . Part Schematics Acquired . | . . . . Parts Damaged . | . . . . Bothacking | -11 -10 -10 -9 ------------ Run | Yrd Mat Min Mat Used RIF Installer . | . . . . Robots Hacked . | . . . . Non-combat . | . . . . Combat . | . . . . Robot Hacks Applied . | . . . . Relay Couplers Released . | . . . . Fabnet Peak Effective % . | . . . . Robots Rewired . | . . . . Allies Hacked . | . . . . Hacks Repelled . | . . . . Allies | -11 -10 -10 -9 -------- Run | Yrd Mat Min Mat Total Allies 3 | . . 3 . Largest Group 3 | . . 3 . Highest-Rated Group 40 | . . 40 . Highest-Rated Ally 16 | . . 16 . Total Orders . | . . . . Ally Attacks 10 | . . 10 . Total Damage 106 | . . 106 . Kills 2 | . . 2 . Allies Corrupted . | . . . . Allies Melted . | . . . . Intel | -11 -10 -10 -9 ------- Run | Yrd Mat Min Mat Active Infowar (turns) 949 | 12 403 279 255 Terrain 255 | . . . 255 Seismic 887 | 12 403 279 193 Robot Analysis Total . | . . . . Derelict Logs Recovered 1 | . . 1 . Drone Launches . | . . . . Drone Recoveries . | . . . . Exploration | -11 -10 -10 -9 ------------- Run | Yrd Mat Min Mat Turns Passed 1688 | 152 481 670 385 Spaces Moved 815 | 64 254 319 178 Core 3 | 3 . . . Treads 426 | 61 254 111 . Legs 386 | . . 208 178 Wheels . | . . . . Hover . | . . . . Flight . | . . . . Fastest Speed 50 | 50 160 120 190 Average Speed 174 | 154 160 178 193 Slowest Speed 260 | 160 160 260 260 Overloaded Moves . | . . . . Propulsion Burnouts . | . . . . Robots Hopped . | . . . . Potential Cave-ins . | . . . . Cave-ins Triggered . | . . . . Exploration Rate (%) 31 | 4 39 62 20 Regions Visited 3 Branch Regions 1 Pre-discovered Areas 1 | . . 1 . Known Exits Taken . | . . . . Unknown Exits Taken 3 | 1 1 1 . Scrap Searched 1 | . . 1 . Spaces Dug . | . . . . Terrain Destroyed 128 | 3 . 30 95 Melee . | . . . . Projectile . | . . . . AOE 128 | 3 . 30 95 Terrain Rammed . | . . . . Walls Destroyed . | . . . . Machines Disabled . | . . . . Actions | -11 -10 -10 -9 --------- Run | Yrd Mat Min Mat Total 956 | 93 287 375 201 Wait 2 | . . . 2 Move 812 | 63 253 318 178 Hop . | . . . . Pick Up 20 | 11 7 2 . Fast Attach 3 | . . 3 . Attach 13 | 7 1 2 3 Detach 3 | . 1 2 . Swap 7 | . 3 3 1 Drop 6 | . 1 5 . Fire 63 | 12 21 15 15 Melee 24 | . . 22 2 Ram . | . . . . Kick . | . . . . Crush 3 | . . 3 . Escape Stasis . | . . . . Rewire . | . . . . Trap . | . . . . Miscellaneous . | . . . . Route ------- -11/Scrapyard -10/Materials (discovered 2 exits: *Mat / [*Min]) -10/Mines -9/Materials History --------- Turn | Location | Event 2 | -11/Scrapyard | Met Revision 17 8 | -11/Scrapyard | Discovered new exit (range 14) 153 | -11/Scrapyard | Entered Materials 301 | -10/Materials | Build established: Mutant 426 | -10/Materials | Discovered new exit (range 15) 512 | -10/Materials | Discovered new exit (range 3) 634 | -10/Materials | Entered Mines 716 | -10/Mines | Assisted by bots powering up and referring to "LRC-V3" 791 | -10/Mines | A weapon hastily lodged in a ceiling crevice suddenly fell to the ground 820 | -10/Mines | Lost 3 allies 920 | -10/Mines | Assembled infested the area 934 | -10/Mines | Learned location of Zion (-6) 1011 | -10/Mines | Core integrity fell below 50% 1025 | -10/Mines | Discovered new exit (range 8) 1244 | -10/Mines | Received a Rocket Launcher from a helpful Derelict 1304 | -10/Mines | Entered Materials 1304 | -9/Materials | Evolved 2 slots: Utility x2 1689 | -9/Materials | Self-destructed Last Messages --------------- 01572_ Y-45 Defender destroyed. 01575_ The unstable cave ceiling collapses. 01575_ Heat Sink crushed. 01579_ The unstable cave ceiling collapses. 01580_ K-01 Serf collects debris. 01582_ U-05 Engineer lays Concrete. 01584_ K-01 Serf collects debris. 01605_ U-05 Engineer builds a Door. 01618_ W-16 Scout sends out distress signal. 01621_ Destroyed Hover Unit. 01625_ Scanalyzer disabled. 01628_ Seismic Detector destroyed. 01633_ G-34 Mercenary destroyed. 01643_ The unstable cave ceiling collapses. 01648_ U-05 Engineer lays Concrete. 01649_ U-05 Engineer builds a Wall. 01653_ U-05 Engineer lays Concrete. 01656_ U-05 Engineer builds a Door. 01662_ Aluminum Leg destroyed. 01682_ Lgt. Ion Engine destroyed. Map ----- +----------------------------------------------------+ | ?????????????????????????????????????????????????? | | ?????????????????????????????????????????????????? | | ?????????????????????????????????????????????????? | | ?????????????????????????????????????????????????? | | ?????????????????????????????????????????????????? | | ?????????????????????????????????????????????????? | | ?????????????????????????????????????????????????? | | ?????????????????????????????????????????????????? | | ?????????????????????????????????????????????????? | | ?????????????????????????????????????????????????? | | ?????????????????????????????????????????????????? | | ??????????????????????????? #??????????????????? | | ??????????????????????????? #??????????????????? | | ??????????????????????????? #??????????????????? | | ??????????????????????????? #??????????????????? | | ??????????????????????????# #??????????????????? | | ??????????????????????????# #??????????????????? | | ??????????????????????????+ #??????????????????? | | ??????????????????????????# #??????????????????? | | ??????????????????????????# +????????#?????????? | | ??????????????????????????# #????????????? ? ? | | ??????????????????????????# #????????????? ? | | ?????????????############## #?????? ?????? ? | | ?????????? T #????????#???? ? | | ?????????? #????????????? | | ??????????g @ t#????????????? | | ???????????? " ######## ############### # | | ?????????????????????????## | | ??????????????????????????# | | ????????????????????????#?# | | ?????????????? ?????????#?# ############### | | ??????????????"?????????#?# #????# | | ???????????????? ?????????# #?#??# """ " | | ??????????????? ?????#??#?# #?#???""""" " | | ??????????????????????????# #??#?#""""" " | | ??????????????????????????### #???##""""" # | | ??????????????? ??##????????# #????# """ # | | ?????????????????????######## #?#??# # " | | ??????????????????#### # #???## [ # # | | ??????????????#??????# # #?##?########### # | | ???????????????????#?# " # ################ + | | ????????????????????## T # # | | ????????????? "" # " # | | ???????????? # # | | ???????????? [ # ###########+### ## | | ???????????? %= #??????? # ## | | ???????????? * [ ##??#??? # ## | | ???????????? #??????# # ## | | ????????????? # ###????#?# # #? | | ????????????? ######????????# # #? | +----------------------------------------------------+ Best States ------------- Heat Dissipation 28 Energy Generation 14 Energy Capacity 160 Matter Stores 300 Matter Capacity 300 Sight Range 16 Terrain Scan Range 16 Terrain Scan Density 10 Evasion (%) 45 Recoil Reduction 2 Item Schematics ----------------- None Robot Schematics ------------------ None Fabricated ------------ Nothing Repaired ---------- Nothing Studied --------- None Alien Tech Used ----------------- None Achievements -------------- I Survived The Infestation Resistances Are Futile You Again Challenges ------------ None Game ------ Seed TacticalCoreCharger Manual? 0 Play Time 00:29:31 Cumulative 6.4 hours Start 2026.08.17 @ 10:44:52 End 2026.08.17 @ 17:47:56 Sessions 2 Manual Loads 0 Difficulty Rogue Special Mode None Game No. 18 Rogue 18 Adventurer 0 Explorer 0 Win Type - Total 0 Types 0/0/0/0/0/0/0/0/0/0 Lore% 10 Gallery% 13 Achievement% 10 Wizard Run 0 Options --------- Layout 2 ASCII 0 Keyboard 0 Movement Mouse Keybinds 0 Fullscreen 1 Font 16/SmallcapsGlow Map View 55x47 Zoom Use 0% Tactical HUD 1 Map Filters NONE Filters NONE Steam X RUN: 94f59435-8ae2-4cb6-921d-8fe886c85b4b